[Event "FIDE WCCC G10 2018"]
[Site "Santiago de Compostela"]
[Date "2018.11.08"]
[Round "4"]
[White "Vu, My Linh"]
[Black "Vlasova, Olesia"]
[Result "0-1"]
[ECO "A43"]
[WhiteElo "1349"]
[BlackElo "1639"]
[Annotator "NA"]
[PlyCount "108"]
[EventDate "2018.11.04"]
[EventType "swiss"]
[EventCountry "ESP"]
[SourceTitle "playchess.com"]
[Source "ChessBase"]
[SourceQuality "1"]
[TimeControl "40/5400+30:1800+30"]

1. d4 {[%emt 0:00:00]} Nf6 {[%emt 0:00:00]} 2. Nf3 {[%emt 0:00:00]} c5 {[%emt 0:00:38]} 3. d5 {[%emt 0:00:05]} e6 {[%emt 0:00:56]} 4. c4 {[%emt 0:00:21]} exd5 {[%emt 0:00:37]} 5. cxd5 {[%emt 0:00:13]} d6 {[%emt 0:00:51]} 6. Nc3 {[%emt 0:00:19]} a6 {[%emt 0:00:37]} 7. a4 {[%emt 0:01:08]} Be7 {[%emt 0:01:59]} 8. e4 {[%emt 0:00:16]} O-O {[%emt 0:01:30]} 9. Be2 {[%emt 0:00:50]} Re8 {[%emt 0:02:17]} 10. O-O {[%emt 0:00:57]} Bg4 {[%emt 0:01:55]} 11. Qb3 {[%emt 0:02:04]} Qc7 {[%emt 0:02:31]} 12. h3 {[%emt 0:00:22]} Bh5 {[%emt 0:01:05]} 13. Bg5 {[%emt 0:01:34]} h6 {[%emt 0:01:00]} 14. Bh4 {[%emt 0:00:06]} Nbd7 {[%emt 0:01:46]} 15. Rac1 {[%emt 0:02:05]} Bf8 {[%emt 0:03:52]} 16. Qc2 {[%emt 0:02:52]} Bg6 {[%emt 0:04:38]} 17. Bxf6 {[%emt 0:01:00]} Nxf6 {[%emt 0:00:27]} 18. Nd2 {[%emt 0:02:18]} Nh5 {[%emt 0:07:13]} 19. Nc4 {[%emt 0:03:48]} Qe7 {[%emt 0:05:09]} 20. Bxh5 {[%emt 0:02:34]} Bxh5 {[%emt 0:00:09]} 21. f4 {[%emt 0:00:45]} Rab8 {[%emt 0:04:06]} 22. a5 {[%emt 0:01:28]} Bg6 {[%emt 0:04:58]} 23. Rce1 {[%emt 0:01:34]} Qf6 {[%emt 0:01:19]} 24. Qf2 {[%emt 0:03:21]} Qd4 {[%emt 0:03:59]} 25. Nb6 {[%emt 0:05:36]} Be7 {[%emt 0:09:05]} 26. Re3 {[%emt 0:06:19]} Qb4 {[%emt 0:05:24]} 27. e5 {[%emt 0:10:48]} dxe5 {[%emt 0:07:25]} 28. Nd7 {[%emt 0:05:11]} Rbd8 {[%emt 0:03:39]} 29. Nxe5 {[%emt 0:00:20]} Bf6 {[%emt 0:02:02]} 30. Kh1 {[%emt 0:01:32]} Qxa5 {[%emt 0:01:17]} 31. Rfe1 {[%emt 0:00:26]} Rf8 {[%emt 0:01:45]} 32. g4 {[%emt 0:02:52]} Qc7 {[%emt 0:03:48]} 33. h4 {[%emt 0:03:31]} Bxe5 {[%emt 0:04:32]} 34. Rxe5 {[%emt 0:00:10]} b5 {[%emt 0:03:43]} 35. f5 {[%emt 0:01:10]} Bh7 {[%emt 0:01:20]} 36. Re7 {[%emt 0:00:24]} Qd6 {[%emt 0:00:30]} 37. R1e5 {[%emt 0:03:22]} c4 {[%emt 0:02:47]} 38. Ne4 {[%emt 0:02:01]} Qb4 {[%emt 0:01:30]} 39. Nc5 {[%emt 0:00:40]} Ra8 {[%emt 0:01:01]} 40. Nd7 {[%emt 0:00:00]} Rfd8 {[%emt 0:00:00]} 41. Qb6 {[%emt 0:02:30]} f6 {[%emt 0:05:02]} 42. Qe6+ {[%emt 0:01:12]} Kh8 {[%emt 0:01:03]} 43. Qf7 {[%emt 0:00:44]} Rg8 {[%emt 0:00:41]} 44. Nxf6 {[%emt 0:00:18]} Raf8 {[%emt 0:01:40]} 45. Qh5 {[%emt 0:01:14]} Rxf6 {[%emt 0:01:07]} 46. g5 {[%emt 0:04:04]} Rxf5 {[%emt 0:01:54]} 47. Rxf5 {[%emt 0:00:07]} Bxf5 {[%emt 0:01:56]} 48. Qf7 {[%emt 0:00:36]} Qd6 {[%emt 0:06:52]} 49. h5 {[%emt 0:03:27]} hxg5 {[%emt 0:01:42]} 50. Re2 {[%emt 0:00:17]} Qf6 {[%emt 0:01:11]} 51. Qa7 {[%emt 0:00:51]} Be4+ {[%emt 0:00:58]} 52. Kg1 {[%emt 0:01:02]} Qf3 {[%emt 0:00:40]} 53. Rd2 {[%emt 0:01:54]} Rf8 {[%emt 0:00:26]} 54. h6 {[%emt 0:00:55]} Qh1# {[%emt 0:00:09]} 0-1

[Event "FIDE WCCC G10 2018"]
[Site "Santiago de Compostela"]
[Date "2018.11.08"]
[Round "4"]
[White "Kurmanalina, Deniza"]
[Black "Anupam M Sreekumar"]
[Result "0-1"]
[ECO "C54"]
[WhiteElo "1320"]
[BlackElo "1615"]
[Annotator "NA"]
[PlyCount "97"]
[EventDate "2018.11.04"]
[EventType "swiss"]
[EventCountry "ESP"]
[SourceTitle "playchess.com"]
[Source "ChessBase"]
[SourceQuality "1"]
[TimeControl "40/5400+30:1800+30"]

1. e4 {[%emt 0:00:00]} e5 {[%emt 0:00:00]} 2. Nf3 {[%emt 0:00:00]} Nc6 {[%emt 0:00:05]} 3. Bc4 {[%emt 0:00:00]} Bc5 {[%emt 0:00:11]} 4. c3 {[%emt 0:00:00]} Nf6 {[%emt 0:00:12]} 5. d3 {[%emt 0:00:00]} d6 {[%emt 0:00:21]} 6. Bb3 {[%emt 0:00:00]} h6 {[%emt 0:00:23]} 7. h3 {[%emt 0:00:01]} a5 {[%emt 0:00:18]} 8. a4 {[%emt 0:00:54]} Ba7 {[%emt 0:00:33]} 9. Nbd2 {[%emt 0:00:17]} Be6 {[%emt 0:00:44]} 10. Bc2 {[%emt 0:00:37]} d5 {[%emt 0:01:12]} 11. Qe2 {[%emt 0:00:19]} d4 {[%emt 0:01:46]} 12. Nf1 {[%emt 0:01:06]} Qd6 {[%emt 0:03:16]} 13. g4 {[%emt 0:11:58]} Qc5 {[%emt 0:01:34]} 14. Bd2 {[%emt 0:08:45]} Qb6 {[%emt 0:01:57]} 15. b3 {[%emt 0:23:17]} dxc3 {[%emt 0:06:23]} 16. Bxc3 {[%emt 0:01:36]} Qc5 {[%emt 0:00:26]} 17. Bb2 {[%emt 0:03:22]} Rd8 {[%emt 0:04:37]} 18. Ng3 {[%emt 0:10:14]} Qb4+ {[%emt 0:03:51]} 19. Nd2 {[%emt 0:01:42]} Bd4 {[%emt 0:07:51]} 20. Ba3 {[%emt 0:01:46]} Qb6 {[%emt 0:01:50]} 21. Rb1 {[%emt 0:02:16]} Bc3 {[%emt 0:01:32]} 22. Bd1 {[%emt 0:07:22]} Qa6 {[%emt 0:02:30]} 23. O-O {[%emt 0:04:27]} Bxd2 {[%emt 0:12:25]} 24. Qxd2 {[%emt 0:00:46]} Rxd3 {[%emt 0:01:15]} 25. Qc2 {[%emt 0:01:16]} Rd7 {[%emt 0:05:24]} 26. Qb2 {[%emt 0:02:25]} Nd4 {[%emt 0:01:40]} 27. Qc3 {[%emt 0:01:50]} h5 {[%emt 0:03:11]} 28. Nxh5 {[%emt 0:05:13]} Nxh5 {[%emt 0:03:31]} 29. gxh5 {[%emt 0:00:04]} g6 {[%emt 0:06:53]} 30. Qg3 {[%emt 0:03:34]} Ne2+ {[%emt 0:15:07]} 31. Bxe2 {[%emt 0:00:24]} Qxe2 {[%emt 0:00:08]} 32. Qxe5 {[%emt 0:04:00]} Qxh5 {[%emt 0:02:54]} 33. Qg3 {[%emt 0:01:45]} Bxh3 {[%emt 0:02:49]} 34. Rfe1 {[%emt 0:00:37]} Bg4 {[%emt 0:01:04]} 35. Kg2 {[%emt 0:00:51]} Bh3+ {[%emt 0:01:16]} 36. Kg1 {[%emt 0:00:19]} Bg4 {[%emt 0:02:08]} 37. Kg2 {[%emt 0:00:09]} Rd3 {[%emt 0:00:59]} 38. Re3 {[%emt 0:01:07]} Bd1 {[%emt 0:01:48]} 39. Qh3 {[%emt 0:03:19]} Qxh3+ {[%emt 0:00:32]} 40. Rxh3 {[%emt 0:00:00]} Rhxh3 {[%emt 0:00:00]} 41. Bc5 {[%emt 0:00:51]} Rh5 {[%emt 0:00:57]} 42. Be3 {[%emt 0:00:14]} Bxb3 {[%emt 0:00:36]} 43. Rc1 {[%emt 0:00:23]} c6 {[%emt 0:00:42]} 44. Rb1 {[%emt 0:00:11]} b5 {[%emt 0:00:17]} 45. axb5 {[%emt 0:00:09]} cxb5 {[%emt 0:00:06]} 46. Rc1 {[%emt 0:00:11]} Bc4 {[%emt 0:00:11]} 47. Ra1 {[%emt 0:00:22]} a4 {[%emt 0:00:21]} 48. Rb1 {[%emt 0:00:18]} a3 {[%emt 0:00:06]} 49. Ra1 0-1

[Event "FIDE WCCC G10 2018"]
[Site "Santiago de Compostela"]
[Date "2018.11.08"]
[Round "4"]
[White "Rajanya Datta"]
[Black "Zakirova, Aisha"]
[Result "0-1"]
[ECO "B57"]
[WhiteElo "1312"]
[BlackElo "1678"]
[Annotator "NA"]
[PlyCount "76"]
[EventDate "2018.11.04"]
[EventType "swiss"]
[EventCountry "ESP"]
[SourceTitle "playchess.com"]
[Source "ChessBase"]
[SourceQuality "1"]
[TimeControl "40/5400+30:1800+30"]

1. e4 {[%emt 0:00:00]} c5 {[%emt 0:00:00]} 2. Nf3 {[%emt 0:00:00]} d6 {[%emt 0:00:00]} 3. d4 {[%emt 0:00:00]} cxd4 {[%emt 0:00:00]} 4. Nxd4 {[%emt 0:00:00]} Nf6 {[%emt 0:00:02]} 5. Nc3 {[%emt 0:00:05]} Nc6 {[%emt 0:00:26]} 6. Bc4 {[%emt 0:02:34]} Bd7 {[%emt 0:02:13]} 7. Bg5 {[%emt 0:04:46]} e6 {[%emt 0:14:01]} 8. Ndb5 {[%emt 0:06:18]} Ne5 {[%emt 0:08:48]} 9. Be2 {[%emt 0:06:05]} Qb6 {[%emt 0:20:08]} 10. Be3 {[%emt 0:11:36]} Qa5 {[%emt 0:09:49]} 11. O-O {[%emt 0:09:38]} Nxe4 {[%emt 0:11:41]} 12. Nxe4 {[%emt 0:06:03]} Bxb5 {[%emt 0:00:11]} 13. Bxb5+ {[%emt 0:01:56]} Qxb5 {[%emt 0:00:12]} 14. Nxd6+ {[%emt 0:04:02]} Bxd6 {[%emt 0:00:32]} 15. Qxd6 {[%emt 0:00:09]} Nc4 {[%emt 0:02:29]} 16. Qd3 {[%emt 0:02:27]} Qc6 {[%emt 0:08:51]} 17. Qd4 {[%emt 0:03:19]} Nxe3 {[%emt 0:04:30]} 18. Qxg7 {[%emt 0:03:01]} O-O-O {[%emt 0:00:22]} 19. fxe3 {[%emt 0:00:25]} Rhg8 {[%emt 0:03:24]} 20. Qc3 {[%emt 0:00:06]} Rxg2+ {[%emt 0:05:26]} 21. Kh1 {[%emt 0:00:07]} Rdd2 {[%emt 0:01:11]} 22. Qxc6+ {[%emt 0:02:16]} bxc6 {[%emt 0:00:06]} 23. Rxf7 {[%emt 0:01:14]} Rxh2+ {[%emt 0:00:09]} 24. Kg1 {[%emt 0:00:04]} Rdg2+ {[%emt 0:00:13]} 25. Kf1 {[%emt 0:02:12]} Rxc2 {[%emt 0:01:00]} 26. Rf8+ {[%emt 0:04:45]} Kc7 {[%emt 0:01:10]} 27. Rf7+ {[%emt 0:01:29]} Kb6 {[%emt 0:00:59]} 28. Kg1 {[%emt 0:00:33]} Rcg2+ {[%emt 0:00:22]} 29. Kf1 {[%emt 0:00:19]} Rxb2 {[%emt 0:00:15]} 30. Kg1 {[%emt 0:00:22]} Rbg2+ {[%emt 0:00:35]} 31. Kf1 {[%emt 0:00:06]} Rb2 {[%emt 0:04:10]} 32. Kg1 {[%emt 0:00:27]} h5 {[%emt 0:01:00]} 33. a4 {[%emt 0:03:06]} h4 {[%emt 0:01:04]} 34. a5+ {[%emt 0:00:09]} Ka6 {[%emt 0:00:21]} 35. Rc1 {[%emt 0:01:23]} h3 {[%emt 0:01:01]} 36. Rxc6+ {[%emt 0:03:59]} Kb5 {[%emt 0:00:08]} 37. Rfc7 {[%emt 0:01:55]} Rbg2+ {[%emt 0:00:14]} 38. Kf1 {[%emt 0:00:22]} Rh1# {[%emt 0:00:06]} 0-1

[Event "FIDE WCCC G10 2018"]
[Site "Santiago de Compostela"]
[Date "2018.11.08"]
[Round "4"]
[White "Khanyl, Chuluuntuya"]
[Black "Yildiz, Elif Zeren"]
[Result "0-1"]
[ECO "A41"]
[WhiteElo "1276"]
[BlackElo "1448"]
[Annotator "NA RC"]
[PlyCount "112"]
[EventDate "2018.11.04"]
[EventType "swiss"]
[EventCountry "ESP"]
[SourceTitle "playchess.com"]
[Source "ChessBase"]
[SourceQuality "1"]
[TimeControl "40/5400+30:1800+30"]

1. d4 {[%emt 0:00:04]} d6 {[%emt 0:00:00]} 2. c4 {[%emt 0:01:01]} g6 {[%emt 0:00:00]} 3. e3 {[%emt 0:00:33]} Bg7 {[%emt 0:00:25]} 4. Nc3 {[%emt 0:01:00]} Nc6 {[%emt 0:01:26]} 5. Nf3 {[%emt 0:00:47]} Bg4 {[%emt 0:02:46]} 6. h3 {[%emt 0:01:17]} Bxf3 {[%emt 0:08:53]} 7. Qxf3 {[%emt 0:00:39]} Nf6 {[%emt 0:00:30]} 8. Bd3 {[%emt 0:02:49]} e5 {[%emt 0:04:49]} 9. d5 {[%emt 0:01:42]} Nb4 {[%emt 0:01:10]} 10. e4 {[%emt 0:03:32]} a5 {[%emt 0:02:33]} 11. O-O {[%emt 0:03:41]} O-O {[%emt 0:01:44]} 12. a3 {[%emt 0:03:37]} Na6 {[%emt 0:04:39]} 13. Be3 {[%emt 0:03:37]} Nd7 {[%emt 0:02:32]} 14. Na4 {[%emt 0:10:34]} b6 {[%emt 0:06:21]} 15. Rac1 {[%emt 0:02:23]} Rb8 {[%emt 0:03:40]} 16. Rfd1 {[%emt 0:11:53]} Nac5 {[%emt 0:06:00]} 17. Nxc5 {[%emt 0:01:51]} bxc5 {[%emt 0:00:28]} 18. Rb1 {[%emt 0:01:45]} Rb7 {[%emt 0:06:06]} 19. b4 {[%emt 0:02:16]} cxb4 {[%emt 0:04:42]} 20. axb4 {[%emt 0:01:38]} axb4 {[%emt 0:00:13]} 21. Bd2 {[%emt 0:03:24]} b3 {[%emt 0:06:33]} 22. Be3 {[%emt 0:01:46]} Qe7 {[%emt 0:02:35]} 23. Re1 {[%emt 0:02:14]} Rfb8 {[%emt 0:01:30]} 24. g4 {[%emt 0:03:44]} Nc5 {[%emt 0:02:39]} 25. Bxc5 {[%emt 0:00:27]} dxc5 {[%emt 0:00:14]} 26. Rb2 {[%emt 0:02:04]} Qf6 {[%emt 0:01:05]} 27. Qxf6 {[%emt 0:00:51]} Bxf6 {[%emt 0:00:17]} 28. Reb1 {[%emt 0:00:07]} Bg5 {[%emt 0:01:12]} 29. Be2 {[%emt 0:00:35]} Rb4 {[%emt 0:00:52]} 30. Kg2 {[%emt 0:04:46]} Kf8 {[%emt 0:04:02]} 31. f3 {[%emt 0:02:22]} Be3 {[%emt 0:00:21]} 32. Bd1 {[%emt 0:04:19]} Rxc4 {[%emt 0:01:22]} 33. Rxb3 {[%emt 0:00:16]} Rbb4 {[%emt 0:01:10]} 34. Rxb4 {[%emt 0:04:45]} cxb4 {[%emt 0:00:49]} 35. Be2 {[%emt 0:02:47]} Rc2 {[%emt 0:03:01]} 36. Kf1 {[%emt 0:01:24]} Bc5 {[%emt 0:00:37]} 37. Ke1 {[%emt 0:02:18]} Ke7 {[%emt 0:00:46]} 38. Kd1 {[%emt 0:03:04]} Ra2 {[%emt 0:02:42]} 39. Bc4 {[%emt 0:01:22]} Rh2 {[%emt 0:01:26]} 40. Bf1 {[%emt 0:00:00]} Kd6 {[%emt 0:00:00]} 41. Ra1 {[%emt 0:06:27]} b3 {[%emt 0:06:35]} 42. Ra6+ {[%emt 0:07:41]} Kd7 {[%emt 0:08:57]} 43. Ra1 {[%emt 0:12:34]} b2 {[%emt 0:01:23]} 44. Rb1 {[%emt 0:00:09]} Bd4 {[%emt 0:01:00]} 45. Bb5+ {[%emt 0:02:06]} Kd6 {[%emt 0:00:35]} 46. Bf1 {[%emt 0:00:28]} Kc5 {[%emt 0:01:25]} 47. Be2 {[%emt 0:02:09]} Kb4 {[%emt 0:00:33]} 48. Bf1 {[%emt 0:01:36]} Kb3 {[%emt 0:00:27]} 49. Bd3 {[%emt 0:01:14]} Ka2 {[%emt 0:00:47]} 50. Bc2 {[%emt 0:00:42]} Rh1+ {[%emt 0:00:22]} 51. Kd2 {[%emt 0:00:07]} Rxb1 {[%emt 0:00:05]} 52. Bxb1+ {[%emt 0:00:06]} Kxb1 {[%emt 0:00:04]} 53. Kd3 {[%emt 0:00:15]} Kc1 {[%emt 0:00:14]} 54. h4 {[%emt 0:00:35]} b1=Q+ {[%emt 0:00:04]} 55. Ke2 {[%emt 0:00:20]} Qc2+ {[%emt 0:00:18]} 56. Kf1 {[%emt 0:00:05]} Qf2# {[%emt 0:00:04]} 0-1

[Event "FIDE WCCC G10 2018"]
[Site "Santiago de Compostela"]
[Date "2018.11.08"]
[Round "4"]
[White "Baklova, Mila"]
[Black "Zhapova, Yana"]
[Result "0-1"]
[ECO "B13"]
[WhiteElo "1142"]
[BlackElo "1821"]
[Annotator "NA RC"]
[PlyCount "116"]
[EventDate "2018.11.04"]
[EventType "swiss"]
[EventCountry "ESP"]
[SourceTitle "playchess.com"]
[Source "ChessBase"]
[SourceQuality "1"]
[TimeControl "40/5400+30:1800+30"]

{[%evp 15,92,14,18,25,24,25,19,18,27,7,34,-18,25,16,22,20,32767,32767,32767,32767,32767,32767,-61,-93,-49,-159,-134,-241,-205,-284,-322,-317,-333,-298,-295,-306,-312,-380,-360,-423,-303,-305,-318,-292,-339,-326,-326,-341,-321,-494,-482,-481,-500,-491,-589,-636,-646,-686,-937,-775,-681,-891,-826,-891,-679,-776,-874,-920,-1078,-1282,-1323,32767,-893,-1415,-1493,-5824,-29979,-29985,-29987]} 1. e4 {[%emt 0:00:00]} c6 {[%emt 0:00:00]} 2. d4 {[%emt 0:00:00]} d5 {[%emt 0:00:00]} 3. exd5 {[%emt 0:00:00]} cxd5 {[%emt 0:00:00]} 4. Bf4 {[%emt 0:00:03]} Nc6 {[%emt 0:01:02]} 5. Nf3 {[%emt 0:00:17]} Bg4 {[%emt 0:01:09]} 6. c3 {[%emt 0:00:58]} Nf6 {[%emt 0:00:26]} 7. Nbd2 {[%emt 0:03:25]} e6 {[%emt 0:01:08]} 8. h3 {[%emt 0:05:47]} Bh5 {[%emt 0:00:22]} 9. Bd3 {[%emt 0:03:25]} Bd6 {[%emt 0:02:16]} 10. Bxd6 {[%emt 0:01:50]} Qxd6 {[%emt 0:00:10]} 11. O-O {[%emt 0:01:11] LiveBook: 6 Games} O-O {[%emt 0:00:18]} 12. Qc2 {[%emt 0:01:02]} Rac8 {[%emt 0:03:52] B13: Caro-Kann: Exchange Variation and Panov-Botvinnik Attack} 13. Rae1 {[%emt 0:06:38]} (13. a3 Rfe8 14. Rae1 Bg6 15. Bxg6 hxg6 16. Qd3 b5 17. Ne5 Rb8 18. b4 a5 19. Nb3 axb4 20. axb4 {1-0 (58) Mazziotti Irigoyen,G (2253)-Leskovar Raimondi,M (2315) Buenos Aires 2004}) 13... a6 $146 {[%emt 0:05:59]} ({Predecessor:} 13... Nb4 $5 14. Qb1 $8 Nxd3 15. Qxd3 Qb6 $11 (15... Bg6 16. Qe3 Qa6 17. Ne5 Qxa2 18. Nxg6 hxg6 19. b3 Qa5 20. c4 dxc4 21. bxc4 {0-1 (41) Poveda Jimenez,J (2005)-Castillo Igartua,A (2000) Malaga 1997})) 14. Qb1 {[%emt 0:01:30]} Bg6 {[%emt 0:02:52]} 15. Bxg6 {[%emt 0:01:06]} hxg6 {[%emt 0:00:05]} 16. Ne5 {[%emt 0:01:35]} b5 {[%emt 0:00:22]} 17. f4 {[%emt 0:01:05]} b4 {[%emt 0:00:18]} 18. Ndf3 {[%emt 0:02:52]} bxc3 {[%emt 0:04:35]} 19. bxc3 {[%emt 0:03:19]} Ne7 {[%emt 0:02:13]} 20. Re3 {[%emt 0:04:28]} (20. Qb2 $15) 20... Ne4 {[%emt 0:00:50]} 21. Qe1 {[%emt 0:05:47]} (21. Qb4 $17) 21... Nf5 {[%emt 0:00:19]} 22. Ng5 {[%emt 0:04:56]} (22. Rxe4 {only move.} dxe4 23. Ng5) 22... Nxe3 {[%emt 0:04:43]} 23. Nxe4 {[%emt 0:01:55]} dxe4 {[%emt 0:00:08]} 24. Qxe3 {[%emt 0:00:32]} Qa3 {[%emt 0:01:47]} 25. Qxe4 {[%emt 0:01:42]} Qxc3 {[%emt 0:00:34]} 26. Rf3 {[%emt 0:02:35]} Qc2 {[%emt 0:00:42]} 27. Qe1 {[%emt 0:02:04]} Qc1 {[%emt 0:00:15]} 28. Qxc1 {[%emt 0:01:47]} Rxc1+ {[%emt 0:00:24]} 29. Kh2 {[%emt 0:00:15]} Rd8 {[%emt 0:00:57]} 30. Rd3 {[%emt 0:02:02]} Kf8 {[%emt 0:01:32]} 31. Rd2 {[%emt 0:02:22]} Ke7 {[%emt 0:01:39]} 32. g4 {[%emt 0:00:22]} (32. Rb2 {was necessary.} Rc7 33. Rb4) 32... Rdc8 {[%emt 0:00:16]} 33. Kg3 {[%emt 0:00:49]} R8c2 {[%emt 0:00:36]} 34. Rd3 {[%emt 0:00:35]} Rc3 {[%emt 0:00:05]} 35. Rxc3 {[%emt 0:00:06]} Rxc3+ {[%emt 0:00:04]} 36. Kh4 {[%emt 0:00:22]} Ra3 {[%emt 0:01:16]} 37. Nc6+ {[%emt 0:03:05]} Ke8 {[%emt 0:00:20]} 38. Nb4 {[%emt 0:01:06]} Ra4 {[%emt 0:00:13]} 39. Nc6 {[%emt 0:00:17]} Rc4 {[%emt 0:00:43]} 40. Na5 Rxd4 {[%emt 0:00:00]} 41. Nb7 {[%emt 0:01:30]} Rxf4 {[%emt 0:00:45]} 42. Nd6+ {[%emt 0:00:13]} Kd7 {[%emt 0:00:23]} 43. Nb7 e5 {[%emt 0:01:24]} 44. Nc5+ {[%emt 0:00:36]} Kc6 {[%emt 0:00:24]} 45. Nxa6 {[%emt 0:00:13]} Kb6 {[%emt 0:00:10]} 46. Nb4 {[%emt 0:00:11]} Rxb4 {[%emt 0:00:06]} 47. a3 {[%emt 0:00:08]} Rb3 {[%emt 0:00:26]} 48. a4 {[%emt 0:00:09]} e4 {[%emt 0:00:04]} 49. g5 {[%emt 0:00:18]} Rf3 {[%emt 0:00:49]} 50. a5+ {[%emt 0:00:12]} Kxa5 {[%emt 0:00:44]} 51. Kg4 {[%emt 0:00:08]} Rf1 {[%emt 0:00:05]} 52. h4 {[%emt 0:00:23]} e3 {[%emt 0:00:04]} 53. h5 {[%emt 0:00:08]} gxh5+ {[%emt 0:00:15]} 54. Kh3 {[%emt 0:00:20]} e2 {[%emt 0:00:09]} 55. g6 {[%emt 0:00:12]} e1=Q {[%emt 0:00:28]} 56. gxf7 {[%emt 0:00:28]} Rf3+ {[%emt 0:00:19]} 57. Kh2 {[%emt 0:00:16]} Qf2+ {[%emt 0:00:10]} 58. Kh1 {[%emt 0:00:11]} Rh3# 0-1